[Event "*** Titled Tuesday 3|2 Blitz"]
[Site "Chess.com"]
[Date "2017.06.06"]
[Round "6"]
[White "ArnaudovP"]
[Black "ChessQueen"]
[Result "1-0"]
[WhiteElo "2423"]
[BlackElo "2494"]
[TimeControl "180+2"]
[EndTime "15:04:59 PDT"]
[Termination "ArnaudovP won by resignation"]

1. e4 {[%clk 0:03:02]} 1... c5 {[%clk 0:02:58.7]} 2. Nc3 {[%clk 0:03:01.6]} 2...
Nc6 {[%clk 0:02:57.1]} 3. Bb5 {[%clk 0:03:01.5]} 3... Nd4 {[%clk 0:02:55.6]} 4.
Bc4 {[%clk 0:03:01]} 4... e6 {[%clk 0:02:55.3]} 5. Nge2 {[%clk 0:03:00.3]} 5...
a6 {[%clk 0:02:50.8]} 6. d3 {[%clk 0:02:57.7]} 6... b5 {[%clk 0:02:48.7]} 7. Bb3
{[%clk 0:02:58.1]} 7... Bb7 {[%clk 0:02:49.1]} 8. O-O {[%clk 0:02:57.8]} 8...
Ne7 {[%clk 0:02:32.7]} 9. Nxd4 {[%clk 0:02:57.4]} 9... cxd4 {[%clk 0:02:33.2]}
10. Ne2 {[%clk 0:02:58.5]} 10... Nc6 {[%clk 0:02:26.7]} 11. f4 {[%clk
0:02:55.9]} 11... Be7 {[%clk 0:02:24.6]} 12. f5 {[%clk 0:02:55.6]} 12... Qc7
{[%clk 0:02:15.8]} 13. Bf4 {[%clk 0:02:52.8]} 13... e5 {[%clk 0:01:55.8]} 14.
Bd2 {[%clk 0:02:52.1]} 14... Na5 {[%clk 0:01:12.4]} 15. Ng3 {[%clk 0:02:50.5]}
15... Nxb3 {[%clk 0:01:11.3]} 16. axb3 {[%clk 0:02:50.1]} 16... g6 {[%clk
0:01:10.5]} 17. Kh1 {[%clk 0:02:38.4]} 17... d5 {[%clk 0:00:37.6]} 18. Qf3
{[%clk 0:02:34]} 18... O-O-O {[%clk 0:00:36.4]} 19. Ba5 {[%clk 0:02:32.7]} 19...
Qd7 {[%clk 0:00:27]} 20. Bxd8 {[%clk 0:02:32.6]} 20... Rxd8 {[%clk 0:00:28]} 21.
Rac1 {[%clk 0:02:30.4]} 21... dxe4 {[%clk 0:00:27.1]} 22. Nxe4 {[%clk
0:02:29.3]} 22... Kb8 {[%clk 0:00:24.8]} 23. fxg6 {[%clk 0:02:27.3]} 23... fxg6
{[%clk 0:00:24.9]} 24. Qf7 {[%clk 0:02:24.8]} 24... Bxe4 {[%clk 0:00:16]} 25.
dxe4 {[%clk 0:02:24.4]} 25... Bg5 {[%clk 0:00:17.5]} 26. Qxd7 {[%clk 0:02:22.9]}
26... Rxd7 {[%clk 0:00:18.2]} 27. Rcd1 {[%clk 0:02:22.6]} 27... Rc7 {[%clk
0:00:19.6]} 28. c3 {[%clk 0:02:18.4]} 28... dxc3 {[%clk 0:00:19.9]} 29. bxc3
{[%clk 0:02:19.2]} 29... Kb7 {[%clk 0:00:20.8]} 30. Rd3 {[%clk 0:02:16.6]} 30...
a5 {[%clk 0:00:20.9]} 31. Rfd1 {[%clk 0:02:15.5]} 31... Be7 {[%clk 0:00:19.1]}
32. Rd7 {[%clk 0:02:14.3]} 32... a4 {[%clk 0:00:20.4]} 33. Rxc7+ {[%clk
0:02:14.4]} 33... Kxc7 {[%clk 0:00:21.3]} 34. bxa4 {[%clk 0:02:12.8]} 34... bxa4
{[%clk 0:00:22]} 35. Kg1 {[%clk 0:02:12]} 35... Kc6 {[%clk 0:00:19.1]} 36. Kf2
{[%clk 0:02:10.6]} 36... Kb5 {[%clk 0:00:19.3]} 37. Ke2 {[%clk 0:02:10.6]} 37...
Kc4 {[%clk 0:00:20]} 38. Kd2 {[%clk 0:02:10.8]} 38... Bd8 {[%clk 0:00:11.3]} 39.
Kc2 {[%clk 0:02:08.6]} 39... Ba5 {[%clk 0:00:12.3]} 40. Ra1 {[%clk 0:02:08.8]}
40... Kb5 {[%clk 0:00:13.2]} 41. Kd3 {[%clk 0:02:06.1]} 41... Bc7 {[%clk
0:00:12.3]} 42. Rb1+ {[%clk 0:02:05.8]} 42... Kc5 {[%clk 0:00:10.6]} 43. Rb4
{[%clk 0:02:01.8]} 1-0

[Event "*** Titled Tuesday 3|2 Blitz"]
[Site "Chess.com"]
[Date "2017.06.06"]
[Round "6"]
[White "Vice64"]
[Black "FastChance"]
[Result "0-1"]
[WhiteElo "2323"]
[BlackElo "2484"]
[TimeControl "180+2"]
[EndTime "15:05:21 PDT"]
[Termination "FastChance won by checkmate"]

1. e4 {[%clk 0:03:02]} 1... e6 {[%clk 0:03:00.3]} 2. d4 {[%clk 0:02:58.5]} 2...
d5 {[%clk 0:03:01.4]} 3. Nc3 {[%clk 0:02:58.4]} 3... Nc6 {[%clk 0:03:02.4]} 4.
Nf3 {[%clk 0:02:57.3]} 4... Nf6 {[%clk 0:03:03.6]} 5. e5 {[%clk 0:02:54.9]} 5...
Ne4 {[%clk 0:03:04.9]} 6. Bd3 {[%clk 0:02:51.1]} 6... Bb4 {[%clk 0:03:05.3]} 7.
Bd2 {[%clk 0:02:51.4]} 7... Nxd2 {[%clk 0:03:06.5]} 8. Qxd2 {[%clk 0:02:51.3]}
8... Bd7 {[%clk 0:03:07.5]} 9. a3 {[%clk 0:02:50.6]} 9... Ba5 {[%clk 0:03:08.9]}
10. O-O {[%clk 0:02:48.2]} 10... O-O {[%clk 0:03:09.5]} 11. b4 {[%clk
0:02:48.3]} 11... Bb6 {[%clk 0:03:11]} 12. Ne2 {[%clk 0:02:47.9]} 12... f6
{[%clk 0:03:12.5]} 13. exf6 {[%clk 0:02:47.5]} 13... Qxf6 {[%clk 0:03:14.4]} 14.
b5 {[%clk 0:02:38.4]} 14... Ne7 {[%clk 0:02:43.2]} 15. Ne5 {[%clk 0:02:38.1]}
15... Be8 {[%clk 0:02:43.9]} 16. c3 {[%clk 0:02:36.8]} 16... Ng6 {[%clk
0:02:42.2]} 17. Nxg6 {[%clk 0:02:28.3]} 17... Bxg6 {[%clk 0:02:39.8]} 18. Bxg6
{[%clk 0:02:27.9]} 18... hxg6 {[%clk 0:02:35.7]} 19. Qe3 {[%clk 0:02:24.6]}
19... Rae8 {[%clk 0:02:35.5]} 20. Qd3 {[%clk 0:02:08.9]} 20... Qf5 {[%clk
0:02:33.9]} 21. Qd2 {[%clk 0:02:06.1]} 21... e5 {[%clk 0:02:32.7]} 22. a4 {[%clk
0:02:05.5]} 22... c6 {[%clk 0:02:30.6]} 23. a5 {[%clk 0:02:03.3]} 23... Bc7
{[%clk 0:02:31.1]} 24. bxc6 {[%clk 0:02:03.1]} 24... bxc6 {[%clk 0:02:33]} 25.
Ng3 {[%clk 0:02:03.5]} 25... Qf6 {[%clk 0:02:31.3]} 26. Rab1 {[%clk 0:01:52.6]}
26... Bxa5 {[%clk 0:02:30.7]} 27. Qd3 {[%clk 0:01:36.5]} 27... Bb6 {[%clk
0:02:26.8]} 28. h3 {[%clk 0:01:31.3]} 28... exd4 {[%clk 0:02:25]} 29. cxd4
{[%clk 0:01:29.8]} 29... Bxd4 {[%clk 0:02:22.4]} 30. Kh1 {[%clk 0:01:28.3]}
30... Bb6 {[%clk 0:02:21.1]} 31. Rbc1 {[%clk 0:01:25.3]} 31... Qe6 {[%clk
0:02:20.1]} 32. Rc2 {[%clk 0:01:21.1]} 32... c5 {[%clk 0:02:19.1]} 33. Rd1
{[%clk 0:01:17.8]} 33... Rd8 {[%clk 0:02:15.3]} 34. Re2 {[%clk 0:01:17.1]} 34...
Qf6 {[%clk 0:02:14.7]} 35. Rde1 {[%clk 0:01:16.7]} 35... c4 {[%clk 0:02:14.6]}
36. Qc2 {[%clk 0:01:17.1]} 36... Bxf2 {[%clk 0:02:03.6]} 37. Rf1 {[%clk
0:01:12.2]} 37... Qg5 {[%clk 0:01:55.3]} 38. Ne4 {[%clk 0:00:54]} 38... dxe4
{[%clk 0:01:53.2]} 39. Qxc4+ {[%clk 0:00:53]} 39... Kh7 {[%clk 0:01:52.7]} 40.
Rexf2 {[%clk 0:00:52.5]} 40... Rxf2 {[%clk 0:01:52.8]} 41. Rxf2 {[%clk
0:00:54.4]} 41... Rd1+ {[%clk 0:01:53.2]} 42. Kh2 {[%clk 0:00:54.6]} 42... Qe5+
{[%clk 0:01:45.7]} 43. g3 {[%clk 0:00:55]} 43... e3 {[%clk 0:01:42.6]} 44. Re2
{[%clk 0:00:32.3]} 44... Rd2 {[%clk 0:01:39.5]} 45. Kg2 {[%clk 0:00:30.3]} 45...
Rxe2+ {[%clk 0:01:36.1]} 46. Qxe2 {[%clk 0:00:32.2]} 46... Qd5+ {[%clk
0:01:36.8]} 47. Kf1 {[%clk 0:00:31.1]} 47... Qh1# {[%clk 0:01:34.9]} 0-1

[Event "*** Titled Tuesday 3|2 Blitz"]
[Site "Chess.com"]
[Date "2017.06.06"]
[Round "6"]
[White "GMNeiksans"]
[Black "tigra"]
[Result "0-1"]
[WhiteElo "2677"]
[BlackElo "2644"]
[TimeControl "180+2"]
[EndTime "15:05:47 PDT"]
[Termination "tigra won by resignation"]

1. e4 {[%clk 0:03:02]} 1... e6 {[%clk 0:03:00.9]} 2. d4 {[%clk 0:03:01.6]} 2...
d5 {[%clk 0:03:02.8]} 3. Nd2 {[%clk 0:03:02.3]} 3... Be7 {[%clk 0:03:02.4]} 4.
Ngf3 {[%clk 0:03:02.2]} 4... Nf6 {[%clk 0:03:01.3]} 5. Bd3 {[%clk 0:03:00.6]}
5... c5 {[%clk 0:03:01.6]} 6. exd5 {[%clk 0:02:58.4]} 6... Qxd5 {[%clk
0:03:00.1]} 7. dxc5 {[%clk 0:02:52.5]} 7... Nbd7 {[%clk 0:03:00.3]} 8. Nb3
{[%clk 0:02:52]} 8... Nxc5 {[%clk 0:02:59.5]} 9. Nxc5 {[%clk 0:02:51.4]} 9...
Qxc5 {[%clk 0:03:00.3]} 10. O-O {[%clk 0:02:48.1]} 10... O-O {[%clk 0:03:00.4]}
11. Be3 {[%clk 0:02:43.8]} 11... Qh5 {[%clk 0:02:58.4]} 12. Bd4 {[%clk
0:02:37.7]} 12... Rd8 {[%clk 0:02:54.7]} 13. c3 {[%clk 0:02:37]} 13... Bd7
{[%clk 0:02:54.6]} 14. Ne5 {[%clk 0:02:34.8]} 14... Qxd1 {[%clk 0:02:54]} 15.
Rfxd1 {[%clk 0:02:35.3]} 15... Ba4 {[%clk 0:02:55.8]} 16. b3 {[%clk 0:02:33.8]}
16... Be8 {[%clk 0:02:55.7]} 17. Bf1 {[%clk 0:02:13.9]} 17... Nd5 {[%clk
0:02:46.9]} 18. c4 {[%clk 0:02:13.2]} 18... Nb4 {[%clk 0:02:45.5]} 19. Bc3
{[%clk 0:02:12.6]} 19... Rxd1 {[%clk 0:02:44.9]} 20. Rxd1 {[%clk 0:02:12.3]}
20... Nxa2 {[%clk 0:02:46.3]} 21. Bb2 {[%clk 0:02:08.7]} 21... Nb4 {[%clk
0:02:42.8]} 22. g3 {[%clk 0:02:07.5]} 22... Rd8 {[%clk 0:02:37.7]} 23. Ra1
{[%clk 0:01:56.2]} 23... Bc5 {[%clk 0:02:35.5]} 24. Bc3 {[%clk 0:01:51.7]} 24...
a6 {[%clk 0:02:13.6]} 25. Be2 {[%clk 0:01:43.7]} 25... f6 {[%clk 0:02:08.5]} 26.
Bxb4 {[%clk 0:01:38.2]} 26... Bxb4 {[%clk 0:02:09.2]} 27. Nd3 {[%clk 0:01:39]}
27... Bc3 {[%clk 0:01:45.1]} 28. Rc1 {[%clk 0:01:38.2]} 28... Bd4 {[%clk
0:01:45.6]} 29. Bf3 {[%clk 0:01:36.7]} 29... b6 {[%clk 0:01:24.2]} 30. Nb4
{[%clk 0:01:37]} 30... a5 {[%clk 0:01:12.4]} 31. Nc6 {[%clk 0:01:37.6]} 31...
Bxc6 {[%clk 0:01:11.6]} 32. Bxc6 {[%clk 0:01:37.4]} 32... Bc5 {[%clk 0:01:13.1]}
33. Rc2 {[%clk 0:01:31.5]} 33... h5 {[%clk 0:01:09.4]} 34. Kg2 {[%clk
0:01:30.6]} 34... g5 {[%clk 0:01:09]} 35. f4 {[%clk 0:01:22]} 35... g4 {[%clk
0:01:06.3]} 36. h3 {[%clk 0:01:19.8]} 36... f5 {[%clk 0:01:03.5]} 37. hxg4
{[%clk 0:01:20.3]} 37... hxg4 {[%clk 0:01:05]} 38. Re2 {[%clk 0:01:18.1]} 38...
Kf7 {[%clk 0:01:05.3]} 39. Ba4 {[%clk 0:01:02.7]} 39... Rd3 {[%clk 0:01:05.3]}
40. Kh2 {[%clk 0:01:00.4]} 40... Kf6 {[%clk 0:01:04.8]} 41. Kg2 {[%clk
0:01:00.9]} 41... Bd4 {[%clk 0:01:05.2]} 42. Bd7 {[%clk 0:00:40.1]} 42... e5
{[%clk 0:01:04.8]} 43. fxe5+ {[%clk 0:00:41.2]} 43... Bxe5 {[%clk 0:01:05.7]}
44. Rf2 {[%clk 0:00:34.4]} 44... Rxd7 {[%clk 0:01:05.9]} 0-1

[Event "*** Titled Tuesday 3|2 Blitz"]
[Site "Chess.com"]
[Date "2017.06.06"]
[Round "6"]
[White "TenisMaster"]
[Black "wonderfultime"]
[Result "1-0"]
[WhiteElo "2677"]
[BlackElo "2651"]
[TimeControl "180+2"]
[EndTime "15:05:51 PDT"]
[Termination "TenisMaster won by resignation"]

1. e4 {[%clk 0:03:02]} 1... c5 {[%clk 0:02:56.2]} 2. Nf3 {[%clk 0:02:59.2]} 2...
d6 {[%clk 0:02:57.6]} 3. d4 {[%clk 0:02:59.6]} 3... cxd4 {[%clk 0:02:59.5]} 4.
Nxd4 {[%clk 0:03:01.1]} 4... Nf6 {[%clk 0:03:01]} 5. Nc3 {[%clk 0:03:02.4]} 5...
g6 {[%clk 0:03:02.5]} 6. g3 {[%clk 0:02:59]} 6... Nc6 {[%clk 0:03:02.5]} 7. Bg2
{[%clk 0:02:59.2]} 7... Nxd4 {[%clk 0:03:03.4]} 8. Qxd4 {[%clk 0:02:59.6]} 8...
Bg7 {[%clk 0:03:05.3]} 9. O-O {[%clk 0:02:55.6]} 9... O-O {[%clk 0:03:06.3]} 10.
h3 {[%clk 0:02:48.5]} 10... Qc7 {[%clk 0:02:59.6]} 11. Qd1 {[%clk 0:02:44.2]}
11... Be6 {[%clk 0:02:59.6]} 12. Nd5 {[%clk 0:02:37.6]} 12... Nxd5 {[%clk
0:01:51.9]} 13. exd5 {[%clk 0:02:39.5]} 13... Bf5 {[%clk 0:01:53.4]} 14. c3
{[%clk 0:02:39.6]} 14... b5 {[%clk 0:01:54.1]} 15. Re1 {[%clk 0:02:39.1]} 15...
Rfe8 {[%clk 0:01:51.5]} 16. g4 {[%clk 0:02:17.3]} 16... Bd7 {[%clk 0:01:52]} 17.
Bg5 {[%clk 0:01:43.2]} 17... f6 {[%clk 0:00:56.3]} 18. Be3 {[%clk 0:01:38.8]}
18... f5 {[%clk 0:00:57.7]} 19. Bd4 {[%clk 0:01:34.6]} 19... fxg4 {[%clk
0:00:58.1]} 20. hxg4 {[%clk 0:01:18.7]} 20... Bf6 {[%clk 0:00:50.2]} 21. Bxf6
{[%clk 0:00:57.4]} 21... exf6 {[%clk 0:00:52.1]} 22. Qd4 {[%clk 0:00:58.6]}
22... Kf7 {[%clk 0:00:51.4]} 23. Re6 {[%clk 0:00:49.1]} 23... Bxe6 {[%clk
0:00:35.2]} 24. dxe6+ {[%clk 0:00:49.7]} 24... Ke7 {[%clk 0:00:36.6]} 25. Bxa8
{[%clk 0:00:45.9]} 25... Rxa8 {[%clk 0:00:38.5]} 26. g5 {[%clk 0:00:44.9]} 26...
Rf8 {[%clk 0:00:39.5]} 27. Qh4 {[%clk 0:00:36.2]} 27... Qc5 {[%clk 0:00:18.6]}
28. Qxh7+ {[%clk 0:00:29.8]} 28... Kxe6 {[%clk 0:00:19.9]} 29. Re1+ {[%clk
0:00:30.7]} 29... Kf5 {[%clk 0:00:18.8]} 30. Qe7 {[%clk 0:00:26.2]} 30... Qc8
{[%clk 0:00:14.1]} 31. gxf6 {[%clk 0:00:22.3]} 31... Rxf6 {[%clk 0:00:12.5]} 32.
Re3 {[%clk 0:00:22.9]} 32... Re6 {[%clk 0:00:11.8]} 33. Qf7+ {[%clk 0:00:22.6]}
1-0

[Event "*** Titled Tuesday 3|2 Blitz"]
[Site "Chess.com"]
[Date "2017.06.06"]
[Round "6"]
[White "cstefan"]
[Black "H16"]
[Result "0-1"]
[WhiteElo "2186"]
[BlackElo "2313"]
[TimeControl "180+2"]
[EndTime "15:06:00 PDT"]
[Termination "H16 won by resignation"]

1. Nf3 {[%clk 0:03:02]} 1... c5 {[%clk 0:03:00.2]} 2. g3 {[%clk 0:03:02.8]} 2...
Nc6 {[%clk 0:02:58.9]} 3. Bg2 {[%clk 0:03:04.7]} 3... g6 {[%clk 0:03:00.4]} 4.
O-O {[%clk 0:03:05.2]} 4... Bg7 {[%clk 0:03:01.9]} 5. d3 {[%clk 0:03:07.1]} 5...
e6 {[%clk 0:03:01.4]} 6. e4 {[%clk 0:03:07.2]} 6... Nge7 {[%clk 0:03:02.7]} 7.
c3 {[%clk 0:03:05.8]} 7... d5 {[%clk 0:03:03]} 8. Qe2 {[%clk 0:03:06.5]} 8... h6
{[%clk 0:02:41]} 9. Na3 {[%clk 0:02:59.1]} 9... b6 {[%clk 0:02:27.7]} 10. Nb5
{[%clk 0:02:44.8]} 10... a6 {[%clk 0:02:24.7]} 11. Na3 {[%clk 0:02:45.5]} 11...
b5 {[%clk 0:02:19.7]} 12. Nc2 {[%clk 0:02:45.8]} 12... a5 {[%clk 0:02:15]} 13.
e5 {[%clk 0:02:36.8]} 13... Ba6 {[%clk 0:02:08]} 14. Rd1 {[%clk 0:02:29]} 14...
Qc7 {[%clk 0:02:04.9]} 15. Re1 {[%clk 0:02:20.6]} 15... g5 {[%clk 0:01:27.8]}
16. h3 {[%clk 0:02:19.4]} 16... Ng6 {[%clk 0:01:28]} 17. d4 {[%clk 0:02:15.4]}
17... b4 {[%clk 0:01:28.8]} 18. Qd1 {[%clk 0:02:10.4]} 18... a4 {[%clk
0:01:23.6]} 19. a3 {[%clk 0:01:58.3]} 19... bxc3 {[%clk 0:01:20.5]} 20. bxc3
{[%clk 0:02:00.2]} 20... Na5 {[%clk 0:01:15.2]} 21. Be3 {[%clk 0:01:43.7]} 21...
Nb3 {[%clk 0:01:08.3]} 22. Rb1 {[%clk 0:01:42.9]} 22... Ne7 {[%clk 0:00:58.5]}
23. g4 {[%clk 0:01:24.2]} 23... Nc6 {[%clk 0:00:56]} 24. dxc5 {[%clk 0:01:20.7]}
24... Nca5 {[%clk 0:00:54.1]} 25. Nb4 {[%clk 0:01:12.8]} 25... Nc4 {[%clk
0:00:53.2]} 26. Bd4 {[%clk 0:01:12.9]} 26... Nxa3 {[%clk 0:00:32.8]} 27. Rxb3
{[%clk 0:01:04.6]} 27... axb3 {[%clk 0:00:33.7]} 28. Qxb3 {[%clk 0:01:06.2]}
28... Bc4 {[%clk 0:00:34.8]} 29. Qd1 {[%clk 0:00:59.5]} 29... Nb5 {[%clk
0:00:35.3]} 30. Nd2 {[%clk 0:00:55.2]} 30... Ba2 {[%clk 0:00:19.9]} 31. Nxa2
{[%clk 0:00:43.6]} 31... Rxa2 {[%clk 0:00:20.3]} 32. Qb3 {[%clk 0:00:43.3]}
32... Qa5 {[%clk 0:00:20.2]} 33. Nf3 {[%clk 0:00:20.5]} 33... O-O {[%clk
0:00:20.6]} 34. h4 {[%clk 0:00:20.6]} 34... Nxd4 {[%clk 0:00:18]} 35. cxd4
{[%clk 0:00:20.7]} 35... gxh4 {[%clk 0:00:18.8]} 36. Nxh4 {[%clk 0:00:20.2]}
36... Qxe1+ {[%clk 0:00:19.3]} 37. Bf1 {[%clk 0:00:20.6]} 37... Qxf2+ {[%clk
0:00:21.2]} 0-1

[Event "*** Titled Tuesday 3|2 Blitz"]
[Site "Chess.com"]
[Date "2017.06.06"]
[Round "6"]
[White "jcibarra"]
[Black "Divertissement"]
[Result "1-0"]
[WhiteElo "2641"]
[BlackElo "2418"]
[TimeControl "180+2"]
[EndTime "15:06:00 PDT"]
[Termination "jcibarra won by checkmate"]

1. e4 {[%clk 0:03:02]} 1... c5 {[%clk 0:02:58.7]} 2. Nf3 {[%clk 0:03:03]} 2...
Nc6 {[%clk 0:02:59.9]} 3. d4 {[%clk 0:03:04.3]} 3... cxd4 {[%clk 0:03:00.3]} 4.
Nxd4 {[%clk 0:03:06.2]} 4... Qb6 {[%clk 0:03:01.2]} 5. Nb3 {[%clk 0:03:06.2]}
5... Nf6 {[%clk 0:03:01.8]} 6. Nc3 {[%clk 0:03:07.5]} 6... e6 {[%clk 0:03:01.7]}
7. a3 {[%clk 0:03:09]} 7... Be7 {[%clk 0:02:58]} 8. Bf4 {[%clk 0:03:06.7]} 8...
O-O {[%clk 0:02:55.5]} 9. Bd6 {[%clk 0:03:03.8]} 9... a5 {[%clk 0:02:47.9]} 10.
Na4 {[%clk 0:02:50.1]} 10... Qd8 {[%clk 0:02:43.5]} 11. f3 {[%clk 0:02:48.7]}
11... Ne8 {[%clk 0:02:26.5]} 12. Bxe7 {[%clk 0:02:48.5]} 12... Qxe7 {[%clk
0:02:27.6]} 13. Nb6 {[%clk 0:02:48.3]} 13... Rb8 {[%clk 0:02:22.1]} 14. Qd2
{[%clk 0:02:49.7]} 14... Qf6 {[%clk 0:02:06.6]} 15. O-O-O {[%clk 0:02:49.2]}
15... Nc7 {[%clk 0:01:49.8]} 16. Nxa5 {[%clk 0:02:34.8]} 16... d5 {[%clk
0:01:37.7]} 17. Nb3 {[%clk 0:02:31.4]} 17... dxe4 {[%clk 0:01:21]} 18. fxe4
{[%clk 0:02:33.3]} 18... e5 {[%clk 0:01:20.6]} 19. Bc4 {[%clk 0:02:32]} 19...
Be6 {[%clk 0:01:14.8]} 20. Rhf1 {[%clk 0:02:24.2]} 20... Qg6 {[%clk 0:01:13.2]}
21. Nc5 {[%clk 0:02:15.8]} 21... Nd4 {[%clk 0:00:47.1]} 22. Nxe6 {[%clk
0:02:05.7]} 22... Ncxe6 {[%clk 0:00:45.4]} 23. Nd7 {[%clk 0:02:00.3]} 23... Rfc8
{[%clk 0:00:41.2]} 24. Nxe5 {[%clk 0:01:45.3]} 24... Qxe4 {[%clk 0:00:40]} 25.
Rde1 {[%clk 0:01:41.8]} 25... Rxc4 {[%clk 0:00:33.8]} 26. Nxc4 {[%clk
0:01:38.3]} 26... Qc6 {[%clk 0:00:30.1]} 27. Qd3 {[%clk 0:01:34.5]} 27... Rc8
{[%clk 0:00:29]} 28. Ne3 {[%clk 0:01:29.6]} 28... Nc5 {[%clk 0:00:26]} 29. Qd1
{[%clk 0:01:23.5]} 29... b5 {[%clk 0:00:16.1]} 30. Kb1 {[%clk 0:01:22.5]} 30...
Nde6 {[%clk 0:00:17.1]} 31. Nd5 {[%clk 0:01:19.5]} 31... Kh8 {[%clk 0:00:17.8]}
32. Ne7 {[%clk 0:01:19.5]} 32... Qc7 {[%clk 0:00:18.8]} 33. Nxc8 {[%clk
0:01:20.7]} 33... Qxc8 {[%clk 0:00:20.1]} 34. Rxf7 {[%clk 0:01:22.3]} 34... b4
{[%clk 0:00:20]} 35. axb4 {[%clk 0:01:21.1]} 35... Qe8 {[%clk 0:00:20]} 36. bxc5
{[%clk 0:01:18.8]} 36... Qxf7 {[%clk 0:00:21.1]} 37. Rxe6 {[%clk 0:01:20.4]}
37... Qxe6 {[%clk 0:00:22.4]} 38. Qd8+ {[%clk 0:01:22]} 38... Qg8 {[%clk
0:00:23]} 39. Qxg8+ {[%clk 0:01:22.9]} 39... Kxg8 {[%clk 0:00:24.3]} 40. c6
{[%clk 0:01:24]} 40... Kf8 {[%clk 0:00:25.6]} 41. c7 {[%clk 0:01:25.7]} 41...
Ke7 {[%clk 0:00:26.9]} 42. c8=Q {[%clk 0:01:27.6]} 42... h6 {[%clk 0:00:28.1]}
43. Qf5 {[%clk 0:01:28.5]} 43... g5 {[%clk 0:00:28.7]} 44. Qg6 {[%clk
0:01:29.7]} 44... g4 {[%clk 0:00:29.4]} 45. c4 {[%clk 0:01:31.6]} 45... h5
{[%clk 0:00:29.7]} 46. c5 {[%clk 0:01:32.1]} 46... h4 {[%clk 0:00:30]} 47. c6
{[%clk 0:01:32.9]} 47... g3 {[%clk 0:00:30.9]} 48. hxg3 {[%clk 0:01:33.6]} 48...
h3 {[%clk 0:00:31.5]} 49. gxh3 {[%clk 0:01:34.9]} 49... Kd8 {[%clk 0:00:31.3]}
50. Qf7 {[%clk 0:01:35.2]} 50... Kc8 {[%clk 0:00:32.4]} 51. Qd7+ {[%clk
0:01:36.8]} 51... Kb8 {[%clk 0:00:33.2]} 52. Qb7# {[%clk 0:01:38.7]} 1-0

[Event "*** Titled Tuesday 3|2 Blitz"]
[Site "Chess.com"]
[Date "2017.06.06"]
[Round "6"]
[White "AkshatChandra"]
[Black "AndreyOstrovskiy"]
[Result "1-0"]
[WhiteElo "2736"]
[BlackElo "2529"]
[TimeControl "180+2"]
[EndTime "15:06:19 PDT"]
[Termination "AkshatChandra won by resignation"]

1. d4 {[%clk 0:03:02]} 1... Nf6 {[%clk 0:03:00.3]} 2. Bf4 {[%clk 0:03:02.5]}
2... d5 {[%clk 0:03:00.3]} 3. e3 {[%clk 0:03:03.3]} 3... c5 {[%clk 0:03:01.2]}
4. c3 {[%clk 0:03:04.4]} 4... Nc6 {[%clk 0:03:02]} 5. Nd2 {[%clk 0:03:05.4]}
5... Qb6 {[%clk 0:02:59.4]} 6. Qb3 {[%clk 0:03:02.1]} 6... c4 {[%clk 0:03:00]}
7. Qc2 {[%clk 0:02:57]} 7... Bg4 {[%clk 0:02:47.2]} 8. e4 {[%clk 0:02:27.1]}
8... e6 {[%clk 0:02:47.9]} 9. Be2 {[%clk 0:02:23.1]} 9... Bxe2 {[%clk
0:02:40.2]} 10. Nxe2 {[%clk 0:02:25]} 10... Be7 {[%clk 0:02:34.8]} 11. O-O
{[%clk 0:02:24.4]} 11... O-O {[%clk 0:02:34.7]} 12. Ng3 {[%clk 0:02:21.7]} 12...
Qd8 {[%clk 0:02:22.3]} 13. Rae1 {[%clk 0:02:16.4]} 13... b5 {[%clk 0:02:18.4]}
14. e5 {[%clk 0:02:16.1]} 14... Nd7 {[%clk 0:02:16.2]} 15. Nf3 {[%clk
0:02:16.9]} 15... Re8 {[%clk 0:02:07.1]} 16. Qd2 {[%clk 0:02:18]} 16... Nf8
{[%clk 0:02:05.3]} 17. Nh5 {[%clk 0:02:05.6]} 17... Ng6 {[%clk 0:01:59.4]} 18.
Bg5 {[%clk 0:01:58.6]} 18... b4 {[%clk 0:01:46.8]} 19. g3 {[%clk 0:01:47.8]}
19... Rb8 {[%clk 0:01:44.8]} 20. h4 {[%clk 0:01:46.9]} 20... bxc3 {[%clk
0:01:41.7]} 21. bxc3 {[%clk 0:01:48.8]} 21... Qa5 {[%clk 0:01:30.3]} 22. Bh6
{[%clk 0:00:45.7]} 22... Bf8 {[%clk 0:01:30.6]} 23. Bxg7 {[%clk 0:00:42]} 23...
Bxg7 {[%clk 0:01:29.8]} 24. Nxg7 {[%clk 0:00:42.9]} 24... Kxg7 {[%clk
0:01:30.5]} 25. h5 {[%clk 0:00:42.6]} 25... Qa3 {[%clk 0:01:20.1]} 26. hxg6
{[%clk 0:00:36.2]} 26... hxg6 {[%clk 0:01:20.4]} 27. Kg2 {[%clk 0:00:35.1]}
27... Rh8 {[%clk 0:01:20.2]} 28. Rh1 {[%clk 0:00:31.6]} 28... Qe7 {[%clk
0:01:09.9]} 29. Qf4 {[%clk 0:00:31.4]} 29... Rbg8 {[%clk 0:00:41.2]} 30. Ng5
{[%clk 0:00:31]} 30... Nd8 {[%clk 0:00:42]} 31. Rb1 {[%clk 0:00:19.3]} 31... Rf8
{[%clk 0:00:24.6]} 32. a4 {[%clk 0:00:16.5]} 32... f6 {[%clk 0:00:22.6]} 33.
exf6+ {[%clk 0:00:14.9]} 33... Qxf6 {[%clk 0:00:22.4]} 34. Rxh8 {[%clk 0:00:13]}
34... Rxh8 {[%clk 0:00:12.9]} 35. Qc7+ {[%clk 0:00:12.9]} 35... Nf7 {[%clk
0:00:14]} 36. Nxf7 {[%clk 0:00:10.3]} 36... Qxf7 {[%clk 0:00:15]} 37. Qe5+
{[%clk 0:00:10.2]} 1-0